[Event "*** Titled Tuesday Blitz"]
[Site "Chess.com"]
[Date "2020.04.21"]
[Round "2"]
[White "Rakesh"]
[Black "AlexandraBotez"]
[Result "1-0"]
[WhiteElo "2392"]
[BlackElo "2091"]
[TimeControl "180+1"]
[EndTime "10:18:33 PDT"]
[Termination "Rakesh won by resignation"]

1. e4 {[%clk 0:03:00.9]} 1... e6 {[%clk 0:02:56.8]} 2. d4 {[%clk 0:03:00.6]}
2... d5 {[%clk 0:02:55.2]} 3. Bd3 {[%clk 0:03:00.9]} 3... c5 {[%clk 0:02:49.3]}
4. c3 {[%clk 0:02:57.4]} 4... cxd4 {[%clk 0:02:45.9]} 5. cxd4 {[%clk 0:02:56.6]}
5... dxe4 {[%clk 0:02:46.4]} 6. Bxe4 {[%clk 0:02:56.9]} 6... Nf6 {[%clk
0:02:47.1]} 7. Bf3 {[%clk 0:02:57.3]} 7... Qb6 {[%clk 0:02:42.3]} 8. Ne2 {[%clk
0:02:56]} 8... Bd7 {[%clk 0:02:42.4]} 9. O-O {[%clk 0:02:55.2]} 9... Bc6 {[%clk
0:02:41.9]} 10. Nec3 {[%clk 0:02:53.3]} 10... Bxf3 {[%clk 0:02:35]} 11. Qxf3
{[%clk 0:02:54.2]} 11... Nbd7 {[%clk 0:02:27]} 12. Nd2 {[%clk 0:02:52.2]} 12...
Be7 {[%clk 0:02:20.9]} 13. Nb3 {[%clk 0:02:48.8]} 13... O-O {[%clk 0:02:20]} 14.
Be3 {[%clk 0:02:48]} 14... Qd8 {[%clk 0:01:57.1]} 15. d5 {[%clk 0:02:45]} 15...
exd5 {[%clk 0:01:53.5]} 16. Nxd5 {[%clk 0:02:45.9]} 16... Nxd5 {[%clk
0:01:53.8]} 17. Qxd5 {[%clk 0:02:46.7]} 17... b6 {[%clk 0:01:29]} 18. Rfd1
{[%clk 0:02:43.4]} 18... Nf6 {[%clk 0:01:24.8]} 19. Qf3 {[%clk 0:02:38.8]} 19...
Qc7 {[%clk 0:01:21.4]} 20. Rac1 {[%clk 0:02:37.1]} 20... Qe5 {[%clk 0:01:16.2]}
21. Bd4 {[%clk 0:02:34.7]} 21... Qh5 {[%clk 0:01:03.8]} 22. Qxh5 {[%clk
0:02:26.9]} 22... Nxh5 {[%clk 0:01:03.7]} 23. Rc7 {[%clk 0:02:26.5]} 23... Bf6
{[%clk 0:01:02.1]} 24. g4 {[%clk 0:02:19.1]} 24... Nf4 {[%clk 0:00:58.3]} 25.
Bxf6 {[%clk 0:02:16.2]} 25... gxf6 {[%clk 0:00:59.2]} 26. Rdd7 {[%clk
0:02:13.2]} 26... Rae8 {[%clk 0:00:58.1]} 27. Kf1 {[%clk 0:02:08.3]} 27... a5
{[%clk 0:00:57.7]} 28. Nd4 {[%clk 0:01:55.5]} 28... Re4 {[%clk 0:00:54.3]} 29.
Nf5 {[%clk 0:01:51]} 29... Rfe8 {[%clk 0:00:52.8]} 30. Rc1 {[%clk 0:01:27.6]}
30... Re2 {[%clk 0:00:48.6]} 31. Rd4 {[%clk 0:01:07.8]} 31... Nh3 {[%clk
0:00:47.1]} 32. Kg2 {[%clk 0:00:54.6]} 32... Nxf2 {[%clk 0:00:46.9]} 33. Kf3
{[%clk 0:00:51.2]} 33... Nh3 {[%clk 0:00:43.7]} 34. Kg3 {[%clk 0:00:44]} 34...
Ng5 {[%clk 0:00:42.9]} 35. h4 {[%clk 0:00:43.4]} 35... Ne4+ {[%clk 0:00:40.1]}
36. Kf3 {[%clk 0:00:42.8]} 36... Nd2+ {[%clk 0:00:39.7]} 37. Kg3 {[%clk
0:00:42.4]} 37... Ne4+ {[%clk 0:00:39.9]} 38. Kf4 {[%clk 0:00:34]} 38... Nc5
{[%clk 0:00:38.8]} 39. Kf3 {[%clk 0:00:22.5]} 39... Rxb2 {[%clk 0:00:38.2]} 40.
Re1 {[%clk 0:00:21.7]} 40... Rf8 {[%clk 0:00:33.2]} 41. Rd6 {[%clk 0:00:20.3]}
41... Ne6 {[%clk 0:00:31.3]} 42. Re2 {[%clk 0:00:13.8]} 42... Rb4 {[%clk
0:00:29.2]} 43. Rd7 {[%clk 0:00:11.9]} 43... Rc8 {[%clk 0:00:28.8]} 44. Red2
{[%clk 0:00:10.1]} 44... Rc3+ {[%clk 0:00:26.5]} 45. R2d3 {[%clk 0:00:10]} 45...
Rxd3+ {[%clk 0:00:25.7]} 46. Rxd3 {[%clk 0:00:10.9]} 46... Kf8 {[%clk 0:00:25]}
47. Rd7 {[%clk 0:00:10.1]} 47... Ke8 {[%clk 0:00:24.9]} 48. Re7+ {[%clk
0:00:10.5]} 48... Kf8 {[%clk 0:00:24.4]} 49. Rb7 {[%clk 0:00:10.4]} 49... Nd4+
{[%clk 0:00:23.3]} 50. Ke4 {[%clk 0:00:10.6]} 50... Nxf5+ {[%clk 0:00:23.4]} 51.
Kxf5 {[%clk 0:00:11.5]} 51... Rb1 {[%clk 0:00:22.1]} 52. Kxf6 {[%clk 0:00:11.4]}
52... Rf1+ {[%clk 0:00:21.9]} 53. Kg5 {[%clk 0:00:11.9]} 53... Rb1 {[%clk
0:00:21.2]} 54. a4 {[%clk 0:00:11.2]} 54... Rb4 {[%clk 0:00:20.6]} 55. Kf5
{[%clk 0:00:09.3]} 55... Rxa4 {[%clk 0:00:20.6]} 56. Rxb6 {[%clk 0:00:09.5]}
56... Rb4 {[%clk 0:00:21.3]} 57. Ra6 {[%clk 0:00:09.1]} 57... Rb5+ {[%clk
0:00:20.8]} 58. Kf6 {[%clk 0:00:08.7]} 58... Rb4 {[%clk 0:00:16.5]} 59. Ra8+
{[%clk 0:00:08.4]} 1-0

[Event "*** Titled Tuesday Blitz"]
[Site "Chess.com"]
[Date "2020.04.21"]
[Round "2"]
[White "Kawhi_Leonard2"]
[Black "jonaszmb"]
[Result "1-0"]
[WhiteElo "2305"]
[BlackElo "2463"]
[TimeControl "180+1"]
[EndTime "10:18:35 PDT"]
[Termination "Kawhi_Leonard2 won by resignation"]

1. e4 {[%clk 0:01:50]} 1... c5 {[%clk 0:02:59.7]} 2. Nf3 {[%clk 0:01:49.6]} 2...
d6 {[%clk 0:03:00.1]} 3. d4 {[%clk 0:01:49.8]} 3... cxd4 {[%clk 0:03:01]} 4.
Nxd4 {[%clk 0:01:49.9]} 4... Nf6 {[%clk 0:03:01.6]} 5. Nc3 {[%clk 0:01:50.1]}
5... a6 {[%clk 0:03:02.1]} 6. h3 {[%clk 0:01:48.7]} 6... g6 {[%clk 0:03:00.6]}
7. Be3 {[%clk 0:01:46.5]} 7... Bg7 {[%clk 0:03:00.2]} 8. Qd2 {[%clk 0:01:46.9]}
8... Bd7 {[%clk 0:02:57.3]} 9. O-O-O {[%clk 0:01:47.5]} 9... Nc6 {[%clk
0:02:56.8]} 10. g4 {[%clk 0:01:47.7]} 10... Rc8 {[%clk 0:02:46.4]} 11. g5 {[%clk
0:01:46.2]} 11... Ng8 {[%clk 0:02:01.6]} 12. f4 {[%clk 0:01:40.4]} 12... b5
{[%clk 0:01:49.5]} 13. Nxc6 {[%clk 0:01:35.5]} 13... Bxc6 {[%clk 0:01:50.4]} 14.
Bg2 {[%clk 0:01:35.2]} 14... h6 {[%clk 0:01:13]} 15. h4 {[%clk 0:01:32.3]} 15...
Qa5 {[%clk 0:01:05.5]} 16. Kb1 {[%clk 0:01:31.7]} 16... Bxc3 {[%clk 0:01:02.2]}
17. bxc3 {[%clk 0:01:25]} 17... Bd7 {[%clk 0:00:49.2]} 18. Bd4 {[%clk
0:01:20.8]} 18... Be6 {[%clk 0:00:46.3]} 19. c4 {[%clk 0:01:05.3]} 19... Qxd2
{[%clk 0:00:30]} 20. Rxd2 {[%clk 0:01:04.8]} 20... Rh7 {[%clk 0:00:23.9]} 21.
cxb5 {[%clk 0:01:03.2]} 21... axb5 {[%clk 0:00:24.8]} 22. Rf1 {[%clk 0:00:54.9]}
22... hxg5 {[%clk 0:00:24.4]} 23. hxg5 {[%clk 0:00:55.1]} 23... Bc4 {[%clk
0:00:19.3]} 24. f5 {[%clk 0:00:52.5]} 24... Bxf1 {[%clk 0:00:18.7]} 25. Bxf1
{[%clk 0:00:51.5]} 25... Rh1 {[%clk 0:00:18.5]} 26. Rd1 {[%clk 0:00:50.5]} 26...
gxf5 {[%clk 0:00:16.2]} 27. Bxb5+ {[%clk 0:00:50]} 27... Kf8 {[%clk 0:00:14.6]}
28. Rxh1 {[%clk 0:00:50.9]} 28... Rb8 {[%clk 0:00:12.7]} 29. a4 {[%clk
0:00:49.3]} 29... e5 {[%clk 0:00:12.9]} 30. Ba7 {[%clk 0:00:34.9]} 30... Rb7
{[%clk 0:00:12.4]} 31. Bf2 {[%clk 0:00:33.2]} 31... fxe4 {[%clk 0:00:12.6]} 32.
Rd1 {[%clk 0:00:32.9]} 32... Ke7 {[%clk 0:00:10.8]} 33. c4 {[%clk 0:00:28.2]}
33... f6 {[%clk 0:00:09.7]} 34. a5 {[%clk 0:00:27.8]} 34... f5 {[%clk
0:00:06.9]} 35. a6 {[%clk 0:00:27.6]} 35... Rb8 {[%clk 0:00:02.6]} 36. Kc2
{[%clk 0:00:27.7]} 36... f4 {[%clk 0:00:02.3]} 37. a7 {[%clk 0:00:27.2]} 37...
Rd8 {[%clk 0:00:02.8]} 38. Bc6 {[%clk 0:00:25.9]} 38... e3 {[%clk 0:00:03.4]}
39. Be1 {[%clk 0:00:23.6]} 39... Ke6 {[%clk 0:00:01.7]} 40. a8=Q {[%clk
0:00:22.1]} 40... Rxa8 {[%clk 0:00:02.2]} 41. Bxa8 {[%clk 0:00:22.2]} 41... Ne7
{[%clk 0:00:02.6]} 42. Kd3 {[%clk 0:00:20.5]} 42... Nf5 {[%clk 0:00:02.6]} 43.
Bd5+ {[%clk 0:00:17.2]} 43... Ke7 {[%clk 0:00:02.3]} 44. Ke4 {[%clk 0:00:15.6]}
44... Ng7 {[%clk 0:00:02.5]} 45. Bb4 {[%clk 0:00:14]} 45... Nh5 {[%clk
0:00:02.7]} 46. c5 {[%clk 0:00:13.5]} 46... Ng3+ {[%clk 0:00:03]} 47. Kf3 {[%clk
0:00:13]} 47... dxc5 {[%clk 0:00:03.9]} 48. Bxc5+ {[%clk 0:00:12.6]} 48... Ke8
{[%clk 0:00:03.2]} 49. g6 {[%clk 0:00:13]} 49... Nf5 {[%clk 0:00:03.2]} 50. Be4
{[%clk 0:00:11.6]} 50... Nh4+ {[%clk 0:00:03.4]} 51. Ke2 {[%clk 0:00:10.4]}
51... f3+ {[%clk 0:00:01.6]} 52. Bxf3 {[%clk 0:00:10.5]} 52... Nxg6 {[%clk
0:00:02.2]} 53. Bxe3 {[%clk 0:00:10.4]} 53... Nf4+ {[%clk 0:00:02.7]} 54. Bxf4
{[%clk 0:00:10]} 54... exf4 {[%clk 0:00:03.6]} 55. Kd3 {[%clk 0:00:10.4]} 55...
Ke7 {[%clk 0:00:04.5]} 56. Ke4 {[%clk 0:00:11.2]} 56... Kf6 {[%clk 0:00:05.4]}
57. Kxf4 {[%clk 0:00:11.7]} 57... Ke6 {[%clk 0:00:06.3]} 58. Rd5 {[%clk
0:00:10.4]} 58... Kf6 {[%clk 0:00:07.2]} 59. Rd6+ {[%clk 0:00:10.5]} 59... Ke7
{[%clk 0:00:08.1]} 60. Ke5 {[%clk 0:00:10.9]} 60... Ke8 {[%clk 0:00:08.2]} 61.
Kf6 {[%clk 0:00:10.3]} 1-0

[Event "*** Titled Tuesday Blitz"]
[Site "Chess.com"]
[Date "2020.04.21"]
[Round "2"]
[White "AliKa2810"]
[Black "Anton_Demchenko"]
[Result "1/2-1/2"]
[WhiteElo "2582"]
[BlackElo "2833"]
[TimeControl "180+1"]
[EndTime "10:18:38 PDT"]
[Termination "Game drawn - insufficient material"]

1. d4 {[%clk 0:03:00.9]} 1... Nf6 {[%clk 0:03:00.3]} 2. c4 {[%clk 0:02:59.8]}
2... d6 {[%clk 0:03:01.2]} 3. Nc3 {[%clk 0:02:58.6]} 3... e5 {[%clk 0:03:01.6]}
4. Nf3 {[%clk 0:02:57.2]} 4... Nc6 {[%clk 0:03:01.6]} 5. dxe5 {[%clk 0:02:51.8]}
5... dxe5 {[%clk 0:03:02.5]} 6. Qxd8+ {[%clk 0:02:51.8]} 6... Kxd8 {[%clk
0:03:03.4]} 7. Bg5 {[%clk 0:02:46.7]} 7... Be6 {[%clk 0:03:03.4]} 8. e3 {[%clk
0:02:46.4]} 8... Kc8 {[%clk 0:03:02.2]} 9. O-O-O {[%clk 0:02:45.7]} 9... Nd7
{[%clk 0:03:02.3]} 10. Nd2 {[%clk 0:02:32.9]} 10... f6 {[%clk 0:03:02.2]} 11.
Bh4 {[%clk 0:02:30.3]} 11... a5 {[%clk 0:02:47.4]} 12. b3 {[%clk 0:02:18.3]}
12... Ba3+ {[%clk 0:02:37.2]} 13. Kb1 {[%clk 0:02:17.6]} 13... Nc5 {[%clk
0:02:27.6]} 14. Be2 {[%clk 0:02:07]} 14... a4 {[%clk 0:02:13.9]} 15. Nb5 {[%clk
0:01:59.6]} 15... axb3 {[%clk 0:02:03.5]} 16. axb3 {[%clk 0:02:00.5]} 16... Bf5+
{[%clk 0:01:59.2]} 17. e4 {[%clk 0:01:49.9]} 17... Nxe4 {[%clk 0:01:59.5]} 18.
Nxe4 {[%clk 0:01:38]} 18... Bxe4+ {[%clk 0:01:59.6]} 19. Bd3 {[%clk 0:01:38.7]}
19... Bg6 {[%clk 0:01:49.8]} 20. Nxa3 {[%clk 0:01:30.6]} 20... Rxa3 {[%clk
0:01:50.7]} 21. Kb2 {[%clk 0:01:31.1]} 21... Ra8 {[%clk 0:01:46.6]} 22. f3
{[%clk 0:01:30.9]} 22... Bxd3 {[%clk 0:01:39.7]} 23. Rxd3 {[%clk 0:01:30]} 23...
Rd8 {[%clk 0:01:40.6]} 24. Rhd1 {[%clk 0:01:28.8]} 24... Rxd3 {[%clk 0:01:38.4]}
25. Rxd3 {[%clk 0:01:28.3]} 25... Ra2+ {[%clk 0:01:35.2]} 26. Kxa2 {[%clk
0:01:22.6]} 26... Nb4+ {[%clk 0:01:35.6]} 27. Kb2 {[%clk 0:01:21.8]} 27... Nxd3+
{[%clk 0:01:36.5]} 28. Kc3 {[%clk 0:01:22.3]} 28... Nf4 {[%clk 0:01:34.2]} 29.
g4 {[%clk 0:01:18.7]} 29... Ne2+ {[%clk 0:01:26.6]} 30. Kd3 {[%clk 0:01:16]}
30... Nd4 {[%clk 0:01:26.8]} 31. f4 {[%clk 0:01:14.9]} 31... Nxb3 {[%clk
0:01:10.5]} 32. fxe5 {[%clk 0:01:13.6]} 32... fxe5 {[%clk 0:01:11.4]} 33. Bg3
{[%clk 0:01:01.5]} 33... Nc5+ {[%clk 0:01:06.6]} 34. Ke3 {[%clk 0:01:01.9]}
34... Kd7 {[%clk 0:00:39.5]} 35. Bxe5 {[%clk 0:01:01.4]} 35... g6 {[%clk
0:00:40.1]} 36. h4 {[%clk 0:00:58.3]} 36... c6 {[%clk 0:00:37.6]} 37. Bd4 {[%clk
0:00:57.4]} 37... Ne6 {[%clk 0:00:37]} 38. Be5 {[%clk 0:00:57.4]} 38... b5
{[%clk 0:00:32.9]} 39. cxb5 {[%clk 0:00:54.4]} 39... cxb5 {[%clk 0:00:33.8]} 40.
Ke4 {[%clk 0:00:54.4]} 40... Kc6 {[%clk 0:00:34.4]} 41. h5 {[%clk 0:00:47.8]}
41... Nc5+ {[%clk 0:00:29.5]} 42. Kd4 {[%clk 0:00:42.7]} 42... Nb3+ {[%clk
0:00:22.6]} 43. Ke4 {[%clk 0:00:40.5]} 43... Nd2+ {[%clk 0:00:21.7]} 44. Kf4
{[%clk 0:00:39.5]} 44... Kd5 {[%clk 0:00:21.8]} 45. Bg7 {[%clk 0:00:35.8]} 45...
Ne4 {[%clk 0:00:21.4]} 46. Bf8 {[%clk 0:00:34.1]} 46... gxh5 {[%clk 0:00:12.1]}
47. gxh5 {[%clk 0:00:33.7]} 47... Nd6 {[%clk 0:00:13]} 48. Kg5 {[%clk 0:00:30]}
48... b4 {[%clk 0:00:13.3]} 49. Bg7 {[%clk 0:00:20.3]} 49... b3 {[%clk
0:00:12.9]} 50. Bb2 {[%clk 0:00:14.5]} 50... Nc4 {[%clk 0:00:08.4]} 51. Bc3
{[%clk 0:00:14.5]} 51... Ke4 {[%clk 0:00:05.8]} 52. Kh6 {[%clk 0:00:14.8]} 52...
Kd3 {[%clk 0:00:06.4]} 53. Ba1 {[%clk 0:00:12.8]} 53... Ne3 {[%clk 0:00:03.4]}
54. Kxh7 {[%clk 0:00:11.9]} 54... Ng4 {[%clk 0:00:03]} 55. Kg7 {[%clk
0:00:09.7]} 55... Kc2 {[%clk 0:00:03]} 56. h6 {[%clk 0:00:09.1]} 56... Nxh6
{[%clk 0:00:03.5]} 57. Kxh6 {[%clk 0:00:09.2]} 57... b2 {[%clk 0:00:04.4]} 58.
Bxb2 {[%clk 0:00:09.5]} 1/2-1/2

[Event "*** Titled Tuesday Blitz"]
[Site "Chess.com"]
[Date "2020.04.21"]
[Round "2"]
[White "GMartin_Petrov"]
[Black "pouya21"]
[Result "0-1"]
[WhiteElo "2474"]
[BlackElo "2800"]
[TimeControl "180+1"]
[EndTime "10:18:38 PDT"]
[Termination "pouya21 won by resignation"]

1. e4 {[%clk 0:03:00.8]} 1... c5 {[%clk 0:02:59]} 2. Nf3 {[%clk 0:03:01.2]} 2...
d6 {[%clk 0:02:58.8]} 3. d4 {[%clk 0:03:01.6]} 3... cxd4 {[%clk 0:02:59.7]} 4.
Nxd4 {[%clk 0:03:02.2]} 4... Nf6 {[%clk 0:03:00.4]} 5. Nc3 {[%clk 0:03:02.6]}
5... Nc6 {[%clk 0:03:00.7]} 6. Bg5 {[%clk 0:03:01.8]} 6... e6 {[%clk 0:03:00]}
7. Qd2 {[%clk 0:03:01.5]} 7... a6 {[%clk 0:03:00]} 8. O-O-O {[%clk 0:02:59.5]}
8... Bd7 {[%clk 0:03:00]} 9. Kb1 {[%clk 0:02:54.5]} 9... b5 {[%clk 0:02:50.4]}
10. f3 {[%clk 0:02:54.1]} 10... Be7 {[%clk 0:02:46.3]} 11. h4 {[%clk 0:02:45.1]}
11... h6 {[%clk 0:02:25.3]} 12. Be3 {[%clk 0:02:44.3]} 12... h5 {[%clk
0:02:23.7]} 13. Nxc6 {[%clk 0:02:42.4]} 13... Bxc6 {[%clk 0:02:23.5]} 14. Ne2
{[%clk 0:02:42.5]} 14... d5 {[%clk 0:02:20.1]} 15. Nd4 {[%clk 0:02:22.1]} 15...
Bb7 {[%clk 0:02:18.9]} 16. e5 {[%clk 0:02:21.4]} 16... Nd7 {[%clk 0:02:18.5]}
17. Bf4 {[%clk 0:02:19.5]} 17... Rc8 {[%clk 0:02:13.8]} 18. g3 {[%clk
0:02:12.1]} 18... Qb6 {[%clk 0:02:12.5]} 19. Bg5 {[%clk 0:01:57.4]} 19... Bc5
{[%clk 0:02:06.1]} 20. Nb3 {[%clk 0:01:53.5]} 20... Nxe5 {[%clk 0:02:02.1]} 21.
Nxc5 {[%clk 0:01:46.9]} 21... Nxf3 {[%clk 0:01:38.6]} 22. Qf4 {[%clk 0:01:37.9]}
22... Qxc5 {[%clk 0:01:38.4]} 23. Bd3 {[%clk 0:01:06.8]} 23... d4 {[%clk
0:01:14.2]} 24. Rhf1 {[%clk 0:01:00.7]} 24... Nxg5 {[%clk 0:00:47.6]} 25. hxg5
{[%clk 0:00:58.4]} 25... Rc7 {[%clk 0:00:47.8]} 26. Rde1 {[%clk 0:00:49.8]}
26... Re7 {[%clk 0:00:43.4]} 27. Qb8+ {[%clk 0:00:32.1]} 27... Bc8 {[%clk
0:00:39.9]} 28. Re5 {[%clk 0:00:27.6]} 28... Qc7 {[%clk 0:00:38.9]} 29. Qxc7
{[%clk 0:00:19.5]} 29... Rxc7 {[%clk 0:00:39.8]} 30. Rf4 {[%clk 0:00:17.2]}
30... Ke7 {[%clk 0:00:32.6]} 31. Rxd4 {[%clk 0:00:16.7]} 31... g6 {[%clk
0:00:33.1]} 32. Rf4 {[%clk 0:00:14.6]} 32... Bb7 {[%clk 0:00:30.3]} 33. Rf6
{[%clk 0:00:14.2]} 33... Rc6 {[%clk 0:00:28]} 34. b3 {[%clk 0:00:13.8]} 34...
Rd6 {[%clk 0:00:27.9]} 35. Re2 {[%clk 0:00:13.2]} 35... Rg8 {[%clk 0:00:27.3]}
36. Ref2 {[%clk 0:00:13.3]} 36... Rg7 {[%clk 0:00:27.8]} 37. g4 {[%clk
0:00:09.1]} 37... hxg4 {[%clk 0:00:27.5]} 38. R2f4 {[%clk 0:00:09.5]} 38... g3
{[%clk 0:00:27.8]} 39. Rg4 {[%clk 0:00:09.9]} 39... g2 {[%clk 0:00:28]} 40. Rf2
{[%clk 0:00:07.7]} 40... Rd4 {[%clk 0:00:28.2]} 41. Rg3 {[%clk 0:00:06.4]} 41...
Rh4 {[%clk 0:00:28.4]} 42. Kb2 {[%clk 0:00:05.4]} 42... Rh1 {[%clk 0:00:27.3]}
43. Rfxg2 {[%clk 0:00:05.3]} 43... Bxg2 {[%clk 0:00:26.5]} 44. Rxg2 {[%clk
0:00:06]} 44... Rh4 {[%clk 0:00:27.2]} 45. Rg3 {[%clk 0:00:06]} 45... Rgh7
{[%clk 0:00:27.1]} 46. c3 {[%clk 0:00:06.4]} 46... R7h5 {[%clk 0:00:27.4]} 47.
a4 {[%clk 0:00:05.8]} 47... bxa4 {[%clk 0:00:26.4]} 48. b4 {[%clk 0:00:06.4]}
48... Rh3 {[%clk 0:00:26.5]} 49. Rxh3 {[%clk 0:00:05.2]} 49... Rxh3 {[%clk
0:00:27.4]} 50. Bxa6 {[%clk 0:00:05.7]} 50... a3+ {[%clk 0:00:28]} 51. Kb3
{[%clk 0:00:05.5]} 51... a2 {[%clk 0:00:28.5]} 52. Kxa2 {[%clk 0:00:05.7]} 52...
Rxc3 {[%clk 0:00:29.4]} 53. b5 {[%clk 0:00:06.1]} 53... Kd6 {[%clk 0:00:28.2]}
54. b6 {[%clk 0:00:06.3]} 54... Kc6 {[%clk 0:00:27.1]} 55. b7 {[%clk 0:00:06.5]}
55... Kc7 {[%clk 0:00:27.4]} 56. Kb2 {[%clk 0:00:06.6]} 56... Rc5 {[%clk
0:00:28]} 57. Kb3 {[%clk 0:00:06]} 57... Rxg5 {[%clk 0:00:28.9]} 58. Kb4 {[%clk
0:00:05.6]} 58... Rd5 {[%clk 0:00:28.7]} 0-1

[Event "*** Titled Tuesday Blitz"]
[Site "Chess.com"]
[Date "2020.04.21"]
[Round "2"]
[White "GM_DarwinLaylo"]
[Black "GHANDEEVAM2003"]
[Result "0-1"]
[WhiteElo "2593"]
[BlackElo "2898"]
[TimeControl "180+1"]
[EndTime "10:18:39 PDT"]
[Termination "GHANDEEVAM2003 won on time"]

1. c4 {[%clk 0:02:59.3]} 1... e6 {[%clk 0:02:59.7]} 2. d4 {[%clk 0:02:56]} 2...
d5 {[%clk 0:02:59.6]} 3. Nf3 {[%clk 0:02:55.9]} 3... Nf6 {[%clk 0:02:59.1]} 4.
Nc3 {[%clk 0:02:55.5]} 4... a6 {[%clk 0:02:58.1]} 5. Bg5 {[%clk 0:02:44]} 5...
dxc4 {[%clk 0:02:55.8]} 6. a4 {[%clk 0:02:40.5]} 6... Nc6 {[%clk 0:02:54.2]} 7.
e4 {[%clk 0:02:35.6]} 7... Na5 {[%clk 0:02:41.9]} 8. Be2 {[%clk 0:02:31]} 8...
h6 {[%clk 0:02:34.1]} 9. Bh4 {[%clk 0:02:29.2]} 9... Be7 {[%clk 0:02:22.3]} 10.
O-O {[%clk 0:02:26.5]} 10... O-O {[%clk 0:02:17.1]} 11. Qc2 {[%clk 0:02:21]}
11... Rb8 {[%clk 0:02:05.5]} 12. Rad1 {[%clk 0:02:19.8]} 12... b5 {[%clk
0:02:02.6]} 13. axb5 {[%clk 0:02:19.2]} 13... axb5 {[%clk 0:02:03.5]} 14. d5
{[%clk 0:02:19.2]} 14... Qe8 {[%clk 0:01:49.4]} 15. Bg3 {[%clk 0:01:52.3]} 15...
Rb7 {[%clk 0:01:40.4]} 16. dxe6 {[%clk 0:01:23.1]} 16... fxe6 {[%clk 0:01:36.5]}
17. e5 {[%clk 0:01:16]} 17... Nh5 {[%clk 0:01:34.2]} 18. Ne4 {[%clk 0:01:10.9]}
18... Nb3 {[%clk 0:01:25.5]} 19. Nd4 {[%clk 0:00:56.6]} 19... Nxg3 {[%clk
0:01:19.9]} 20. Nxg3 {[%clk 0:00:50]} 20... Nxd4 {[%clk 0:01:11.2]} 21. Rxd4
{[%clk 0:00:49.2]} 21... c5 {[%clk 0:01:07.2]} 22. Bh5 {[%clk 0:00:46.3]} 22...
cxd4 {[%clk 0:00:48.6]} 23. Bxe8 {[%clk 0:00:45.5]} 23... d3 {[%clk 0:00:49.1]}
24. Qd1 {[%clk 0:00:40.4]} 24... Rxe8 {[%clk 0:00:48.7]} 25. Qg4 {[%clk
0:00:40.5]} 25... Rd8 {[%clk 0:00:42]} 26. Nh5 {[%clk 0:00:29.9]} 26... Bb4
{[%clk 0:00:26.1]} 27. Qg6 {[%clk 0:00:27.7]} 27... Rf7 {[%clk 0:00:17.7]} 28.
Nf6+ {[%clk 0:00:26]} 28... Kf8 {[%clk 0:00:18.2]} 29. Nh7+ {[%clk 0:00:21.2]}
29... Kg8 {[%clk 0:00:18.8]} 30. Nf6+ {[%clk 0:00:20.8]} 30... Kf8 {[%clk
0:00:19.4]} 31. Nh7+ {[%clk 0:00:19.9]} 31... Ke7 {[%clk 0:00:20]} 32. Qg4
{[%clk 0:00:14.3]} 32... d2 {[%clk 0:00:19.1]} 33. Qh4+ {[%clk 0:00:13.9]} 33...
Ke8 {[%clk 0:00:19.1]} 34. Rd1 {[%clk 0:00:12.5]} 34... Bc5 {[%clk 0:00:18.2]}
35. Qh5 {[%clk 0:00:10.3]} 35... Bxf2+ {[%clk 0:00:18.1]} 36. Kh1 {[%clk
0:00:10.7]} 36... Be1 {[%clk 0:00:17.6]} 37. g3 {[%clk 0:00:09.7]} 37... Bb7+
{[%clk 0:00:16.4]} 38. Kg1 {[%clk 0:00:09.9]} 38... Rd3 {[%clk 0:00:15.3]} 39.
Nf6+ {[%clk 0:00:08.1]} 39... gxf6 {[%clk 0:00:14.4]} 40. exf6 {[%clk 0:00:08]}
40... Rd5 {[%clk 0:00:12.6]} 41. Qxh6 {[%clk 0:00:07.5]} 41... Rf5 {[%clk
0:00:10.4]} 42. Rxd2 {[%clk 0:00:04.8]} 42... Bxd2 {[%clk 0:00:11.3]} 43. Qxd2
{[%clk 0:00:05]} 43... R7xf6 {[%clk 0:00:10.8]} 0-1